bitfinex/quotes_BTCUSD_20250907
["timestamp","ask_amount","ask_price","bid_price","bid_amount"]
[1757249359499,0.63812411,111110.0,111100.0,0.38404]
[1757249361592,0.63912411,111110.0,111100.0,0.38404]
[1757249370411,0.63914132,111110.0,111100.0,0.38404]
[1757249377527,0.63914175,111110.0,111100.0,0.38404]
[1757249378378,0.63914175,111110.0,111100.0,0.38396]
[1757249381249,0.6391428,111110.0,111100.0,0.38396]
[1757249385315,0.62232628,111110.0,111100.0,0.563978]
[1757249385535,0.62232628,111110.0,111100.0,0.38396]
[1757249385746,0.28232628,111110.0,111100.0,0.563978]
[1757249386599,0.28032628,111110.0,111100.0,0.563978]
[1757249387018,0.28132628,111110.0,111100.0,0.563978]
[1757249387491,0.28032628,111110.0,111100.0,0.38396]
[1757249387898,0.28132628,111110.0,111100.0,0.38396]
[1757249388410,0.28132514,111110.0,111100.0,0.38396]
[1757249390337,0.28132514,111110.0,111100.0,0.41097353]
[1757249395501,0.28132514,111110.0,111100.0,0.26157353]
[1757249395715,0.28132514,111110.0,111100.0,0.41097353]
[1757249396461,0.28132514,111110.0,111100.0,0.59099153]
[1757249397008,0.28132367,111110.0,111100.0,0.59099153]
[1757249397253,0.27291779,111110.0,111100.0,0.59099153]
[1757249397692,0.27291779,111110.0,111100.0,0.41097353]
[1757249412763,0.27291779,111110.0,111100.0,0.59099153]
[1757249418279,0.27291779,111110.0,111100.0,0.41097353]
[1757249419765,0.27291779,111110.0,111100.0,0.59099153]
[1757249423239,0.27291779,111110.0,111100.0,0.41097353]
[1757249425508,0.27291779,111110.0,111100.0,0.59099153]
[1757249428648,0.27273455,111110.0,111100.0,0.59099153]
[1757249434258,0.27291779,111110.0,111100.0,0.59099153]
[1757249434477,0.09291599,111110.0,111100.0,0.59099153]
[1757249434680,0.27291779,111110.0,111100.0,0.59099153]
[1757249435207,0.27191779,111110.0,111100.0,0.39099153]
[1757249436491,0.09191599,111110.0,111100.0,0.39099153]
[1757249436705,0.09191599,111110.0,111100.0,0.39199153]
[1757249437152,0.27191779,111110.0,111100.0,0.39199153]
[1757249441210,0.27191779,111110.0,111100.0,0.24259153]
[1757249441581,0.27191779,111110.0,111100.0,0.39195153]
[1757249446608,0.27191779,111110.0,111100.0,0.24259153]
[1757249446841,0.27191779,111110.0,111100.0,0.39191153]
[1757249459052,0.27191779,111110.0,111100.0,0.46099153]
[1757249474792,0.26953271,111110.0,111100.0,0.46099153]
[1757249491244,0.26953271,111110.0,111100.0,0.31167153]
[1757249491456,0.26953271,111110.0,111100.0,0.46095153]
[1757249527684,0.08953091,111110.0,111100.0,0.46095153]
[1757249527919,0.26953271,111110.0,111100.0,0.46095153]
[1757249567140,0.26953271,111110.0,111100.0,0.28093353]
[1757249568609,0.26953271,111110.0,111100.0,0.46095153]
[1757249569365,0.26953271,111110.0,111100.0,0.28093353]
[1757249571049,0.26953271,111110.0,111100.0,0.46095153]
[1757249574088,0.26953271,111110.0,111100.0,0.46091153]
[1757249574226,0.26953271,111110.0,111100.0,0.28089353]
[1757249574580,0.26953271,111110.0,111100.0,0.46091153]
[1757249575032,0.26953271,111110.0,111100.0,0.13165353]
[1757249575245,0.26953271,111110.0,111100.0,0.28089353]
[1757249576058,0.26953271,111110.0,111100.0,0.46091153]
[1757249592476,0.26953271,111110.0,111100.0,0.28089353]
[1757249592746,0.26953271,111110.0,111100.0,0.46091153]
[1757249596104,0.26953271,111110.0,111100.0,0.39183153]
[1757249597228,0.26953271,111110.0,111100.0,0.21181353]
[1757249597469,0.26953271,111110.0,111100.0,0.39183153]
[1757249598958,0.26953271,111110.0,111100.0,0.21181353]
[1757249599168,0.26953271,111110.0,111100.0,0.39183153]
[1757249601743,0.26953271,111110.0,111100.0,0.21181353]
[1757249601956,0.26953271,111110.0,111100.0,0.39183153]
[1757249603469,0.26953271,111110.0,111100.0,0.21181353]
[1757249603685,0.26953271,111110.0,111100.0,0.39183153]
[1757249607365,0.26953271,111110.0,111100.0,0.46091153]
[1757249621688,0.26953271,111110.0,111100.0,0.45620664]
[1757249621889,0.26953271,111110.0,111100.0,0.45820664]
[1757249623887,0.26953271,111110.0,111100.0,0.4467077]
[1757249625862,0.26953271,111110.0,111100.0,0.4497477]
[1757249638127,0.26953271,111110.0,111100.0,0.4464]
[1757249639001,0.26953271,111110.0,111100.0,0.44503804]
[1757249639214,0.26953271,111110.0,111100.0,0.44169297]
[1757249644274,0.26476255,111110.0,111100.0,0.44169297]
[1757249650449,0.17999172,111120.0,111110.0,0.1800018]
[1757249650667,0.28032402,111120.0,111110.0,0.3300018]
[1757249650859,0.27190159,111120.0,111110.0,0.3352918]
[1757249651064,0.27190159,111120.0,111110.0,0.36230334]
[1757249651476,0.27190159,111120.0,111110.0,0.35504164]
[1757249651859,0.27190159,111120.0,111110.0,0.35169681]
[1757249652615,0.27290159,111120.0,111110.0,0.35169681]
[1757249652942,0.27390159,111120.0,111110.0,0.36084146]
[1757249665052,0.27390159,111120.0,111110.0,0.35357976]
[1757249665227,0.27390159,111120.0,111110.0,0.35023476]
[1757249676314,0.27390159,111120.0,111110.0,0.34494476]
[1757249678578,0.27390159,111120.0,111110.0,0.33768306]
[1757249678791,0.27390159,111120.0,111110.0,0.33433811]
[1757249687704,0.09391599,111120.0,111110.0,0.33433811]
[1757249697331,0.09391599,111120.0,111110.0,0.33099256]
[1757249697684,0.27390159,111120.0,111110.0,0.33099256]
[1757249700951,0.09391599,111120.0,111110.0,0.33099256]
[1757249702701,0.27390159,111120.0,111110.0,0.33099256]
[1757249702958,0.27390159,111120.0,111110.0,0.48007256]
[1757249710144,0.09391599,111120.0,111110.0,0.48007256]
[1757249710428,0.27390159,111120.0,111110.0,0.48007256]
[1757249716973,0.27390159,111120.0,111110.0,0.68007256]
[1757249723045,0.27390159,111120.0,111110.0,0.68301256]
[1757249735102,0.27390159,111120.0,111110.0,0.75209256]
[1757249739602,0.09391599,111120.0,111110.0,0.75209256]
[1757249747123,0.002,111120.0,111110.0,0.75209256]
[1757249755718,0.1819856,111120.0,111110.0,0.75209256]
[1757249755951,0.1819856,111120.0,111110.0,0.60301256]
[1757249756166,0.1819856,111120.0,111110.0,0.75205256]
[1757249757218,0.1819856,111120.0,111110.0,0.60301256]
[1757249757424,0.1819856,111120.0,111110.0,0.75205256]
[1757249757842,0.1819856,111120.0,111110.0,0.68297256]
[1757249759061,0.1819856,111120.0,111110.0,0.68497256]
[1757249759953,0.1819856,111120.0,111110.0,0.53593256]
[1757249760204,0.1819856,111120.0,111110.0,0.68497256]
[1757249762691,0.1819856,111120.0,111110.0,0.75405256]
[1757249764179,0.1819856,111120.0,111110.0,0.60501256]
[1757249764389,0.1819856,111120.0,111110.0,0.75405256]
[1757249765429,0.1819856,111120.0,111110.0,0.60501256]
[1757249765637,0.1819856,111120.0,111110.0,0.75405256]
[1757249779182,0.002,111120.0,111110.0,0.75405256]
[1757249779594,0.1819856,111120.0,111110.0,0.75405256]
[1757249787728,0.1840156,111120.0,111110.0,0.60501256]
[1757249787851,0.1840156,111120.0,111110.0,0.75401256]
[1757249791230,0.1840156,111120.0,111110.0,0.60501256]
[1757249791459,0.1840156,111120.0,111110.0,0.75401256]
[1757249792086,0.1840156,111120.0,111110.0,1.75401256]
[1757249797866,0.1840156,111120.0,111110.0,0.75401256]
[1757249799746,0.1840156,111120.0,111110.0,0.45723619]
[1757249799974,0.27911159,111120.0,111110.0,0.37701154]
[1757249800193,0.27911159,111120.0,111110.0,0.52601154]
[1757249807000,0.27911159,111120.0,111110.0,0.70601334]
[1757249807715,0.27911159,111120.0,111110.0,0.52601154]
[1757249809117,0.27911159,111120.0,111110.0,0.70601334]
[1757249811142,0.27911159,111120.0,111110.0,0.52601154]
[1757249818757,0.27593159,111120.0,111110.0,0.52601154]
[1757249821464,0.27917159,111120.0,111110.0,0.52601154]
[1757249824763,0.27917159,111120.0,111110.0,0.37701154]
[1757249825007,0.27917159,111120.0,111110.0,0.52601154]
[1757249826621,0.28833477,111120.0,111110.0,0.52601154]
[1757249828858,0.27917159,111120.0,111110.0,0.52601154]
[1757249829104,0.28800981,111120.0,111110.0,0.52601154]
[1757249829779,0.27917159,111120.0,111110.0,0.52601154]
[1757249868284,0.27917159,111120.0,111110.0,0.37601154]
[1757249869430,0.27909993,111120.0,111110.0,0.37601154]
[1757249880593,0.27585993,111120.0,111110.0,0.37601154]
[1757249881106,0.27881993,111120.0,111110.0,0.37601154]
[1757249882741,0.27881993,111120.0,111110.0,0.22701154]
[1757249882953,0.27881993,111120.0,111110.0,0.37597154]
[1757249885178,0.27585993,111120.0,111110.0,0.37597154]
[1757249888448,0.27585993,111120.0,111110.0,0.52597154]
[1757249899996,0.27585993,111120.0,111110.0,0.53093154]
[1757249900202,0.27382993,111120.0,111110.0,0.53093154]
[1757249911496,0.27593993,111120.0,111110.0,0.53093154]
[1757249919108,0.27382993,111120.0,111110.0,0.53093154]
[1757249931980,0.27382993,111120.0,111110.0,0.38197154]
[1757249932211,0.27382993,111120.0,111110.0,0.53093154]
[1757249935494,0.27382993,111120.0,111110.0,0.38197154]
[1757249935700,0.27382993,111120.0,111110.0,0.53093154]
[1757249956167,0.27382993,111120.0,111110.0,0.71093334]
[1757249978482,0.00192834,111120.0,111110.0,0.71093334]
[1757249978683,0.18191394,111120.0,111110.0,0.71093334]
[1757249982794,0.18191394,111120.0,111110.0,0.78001334]
[1757249987126,0.18191394,111120.0,111110.0,0.5530018]
[1757249987362,0.18191394,111120.0,111110.0,0.58001157]
[1757249989705,0.00192834,111120.0,111110.0,0.58001157]
[1757249990269,0.00192834,111120.0,111110.0,0.43001157]
[1757249990681,0.00192834,111120.0,111110.0,0.50623147]
[1757250000550,0.00192834,111120.0,111110.0,0.35727147]
[1757250000796,0.00192834,111120.0,111110.0,0.50615147]
[1757250025391,0.00192834,111120.0,111110.0,0.35727147]
[1757250025828,0.00192834,111120.0,111110.0,0.50615147]
[1757250037247,0.00192834,111120.0,111110.0,0.51115147]
[1757250051312,0.00192834,111120.0,111110.0,0.56115147]
[1757250059883,0.00192834,111120.0,111110.0,0.56111147]
[1757250060098,0.18191394,111120.0,111110.0,0.56111147]
[1757250060710,0.27595993,111120.0,111110.0,0.30108977]
[1757250060933,0.27595993,111120.0,111110.0,0.56085157]
[1757250060934,0.27898993,111120.0,111110.0,0.56085157]
[1757250061252,0.27595993,111120.0,111110.0,0.56085157]
[1757250062281,0.27595993,111120.0,111110.0,0.38084977]
[1757250063668,0.27595993,111120.0,111110.0,0.56085157]
[1757250064888,0.27595993,111120.0,111110.0,0.38084977]
[1757250065700,0.27595993,111120.0,111110.0,0.56085157]
[1757250078183,0.27595993,111120.0,111110.0,0.56609157]
[1757250080978,0.27595993,111120.0,111110.0,0.56609157]
[1757250086373,0.27554156,111120.0,111110.0,0.56609157]
[1757250107110,0.27554156,111120.0,111110.0,0.41725157]
[1757250107328,0.27554156,111120.0,111110.0,0.56609157]
[1757250113836,0.27554156,111120.0,111110.0,0.38286977]
[1757250114849,0.27554156,111120.0,111110.0,0.38579977]
[1757250119116,0.27554156,111120.0,111110.0,0.56580157]
[1757250119520,0.27554156,111120.0,111110.0,0.38579977]
[1757250124038,0.27554156,111120.0,111110.0,0.56580157]
[1757250126310,0.27554156,111120.0,111110.0,0.38579977]
[1757250129508,0.27554156,111120.0,111110.0,0.56580157]
[1757250129913,0.27554156,111120.0,111110.0,0.38579977]
[1757250130718,0.27554156,111120.0,111110.0,0.56580157]
[1757250135465,0.27554156,111120.0,111110.0,0.38579977]
[1757250139883,0.27554156,111120.0,111110.0,0.56580157]
[1757250143975,0.27554156,111120.0,111110.0,0.38579977]
[1757250144238,0.27554156,111120.0,111110.0,0.56580157]
[1757250145003,0.27341156,111120.0,111110.0,0.56580157]
[1757250158681,0.27341156,111120.0,111110.0,0.38579977]
[1757250158917,0.27341156,111120.0,111110.0,0.56580157]
[1757250189131,0.27341156,111120.0,111110.0,0.38579977]
[1757250189538,0.27341156,111120.0,111110.0,0.3825625]
[1757250192409,0.27341156,111120.0,111110.0,0.5625643]
[1757250194671,0.27341156,111120.0,111110.0,0.3825625]
[1757250195165,0.27341156,111120.0,111110.0,0.5625643]
[1757250197068,0.27341156,111120.0,111110.0,0.2337225]
[1757250197273,0.27341156,111120.0,111110.0,0.3827625]
[1757250198489,0.27341156,111120.0,111110.0,0.5627643]
[1757250199425,0.27341156,111120.0,111110.0,0.3827625]
[1757250200744,0.27341156,111120.0,111110.0,0.37550317]
[1757250200955,0.27341156,111120.0,111110.0,0.37214754]
[1757250202259,0.27341156,111120.0,111110.0,0.55214934]
[1757250204431,0.27341156,111120.0,111110.0,0.22310754]
[1757250204637,0.27341156,111120.0,111110.0,0.37210754]
[1757250205477,0.27552156,111120.0,111110.0,0.37210754]
[1757250210146,0.27542256,111120.0,111110.0,0.37210754]
[1757250213362,0.27542256,111120.0,111110.0,0.36875829]
[1757250213873,0.27331256,111120.0,111110.0,0.36875829]
[1757250220384,0.27542256,111120.0,111110.0,0.36875829]
[1757250221805,0.27331256,111120.0,111110.0,0.36875829]
[1757250225851,0.27331256,111120.0,111110.0,0.3654131]
[1757250231717,0.27530256,111120.0,111110.0,0.3654131]
[1757250232318,0.27331256,111120.0,111110.0,0.3654131]
[1757250236476,0.33814256,111120.0,111110.0,0.3654131]
[1757250239344,0.33814256,111120.0,111110.0,0.36531541]
[1757250243797,0.15815696,111120.0,111110.0,0.54531721]
[1757250244019,0.06624097,111120.0,111110.0,0.54531721]
[1757250244942,0.24622657,111120.0,111110.0,0.54531721]
[1757250252213,0.24622657,111120.0,111110.0,0.21631541]
[1757250252469,0.24821657,111120.0,111110.0,0.39631721]
[1757250252676,0.24821657,111120.0,111110.0,0.36040541]
[1757250252864,0.24821657,111120.0,111110.0,0.36243541]
[1757250253065,0.24821657,111120.0,111110.0,0.36562541]
[1757250253598,0.24622657,111120.0,111110.0,0.36562541]
[1757250253812,0.24622657,111120.0,111110.0,0.54562721]
[1757250255179,0.24622657,111120.0,111110.0,0.36562541]
[1757250255368,0.24622657,111120.0,111110.0,0.36558541]
[1757250256108,0.24622657,111120.0,111110.0,0.54558721]
[1757250257976,0.24622657,111120.0,111110.0,0.36558541]
[1757250258677,0.24821657,111120.0,111110.0,0.36562541]
[1757250258895,0.24821657,111120.0,111110.0,0.36243541]
[1757250259110,0.24821657,111120.0,111110.0,0.36562541]
[1757250262230,0.24622657,111120.0,111110.0,0.36562541]
[1757250263946,0.24622657,111120.0,111110.0,0.54562721]
[1757250264359,0.24622657,111120.0,111110.0,0.36562541]
[1757250264726,0.24622657,111120.0,111110.0,0.54562721]
[1757250276829,0.06624097,111120.0,111110.0,0.36562541]
[1757250277058,0.24622657,111120.0,111110.0,0.54562721]
[1757250282983,0.2458156,111120.0,111110.0,0.54562721]
[1757250283499,0.2468156,111120.0,111110.0,0.54562721]
[1757250296516,0.2458156,111120.0,111110.0,0.54562721]
[1757250296943,0.2468156,111120.0,111110.0,0.54562721]
[1757250302092,0.2468156,111120.0,111110.0,0.36562541]
[1757250302559,0.2468156,111120.0,111110.0,0.54562721]
[1757250324776,0.2468156,111120.0,111110.0,0.61470721]
[1757250335595,0.2468156,111120.0,111110.0,0.61470721]
[1757250339899,0.2468156,111120.0,111110.0,0.43470541]
[1757250341781,0.2468156,111120.0,111110.0,0.61470721]
[1757250344238,0.2468156,111120.0,111110.0,0.54562721]
[1757250363354,0.2468156,111120.0,111110.0,0.61470721]
[1757250412499,0.34070159,111120.0,111110.0,0.43151541]
[1757250412783,0.34070159,111120.0,111110.0,0.42948541]
[1757250416525,0.34070159,111120.0,111110.0,0.28044541]
[1757250416772,0.34070159,111120.0,111110.0,0.42948541]
[1757250418261,0.34070159,111120.0,111110.0,0.28044541]
[1757250418459,0.34383159,111120.0,111110.0,0.42948541]
[1757250418907,0.37084342,111120.0,111110.0,0.42948541]
[1757250429217,0.93078224,111120.0,111110.0,0.06136541]
[1757250429456,0.93078224,111120.0,111110.0,0.055]
[1757250429899,0.95607144,111120.0,111110.0,0.055]
[1757250430363,0.93078224,111120.0,111110.0,0.055]
[1757250430605,0.93920718,111120.0,111110.0,0.055]
[1757250430908,0.93078224,111120.0,111110.0,0.055]
[1757250431132,0.92878224,111120.0,111110.0,0.055]
[1757250431338,0.92978224,111120.0,111110.0,0.055]
[1757250431775,0.92878224,111120.0,111110.0,0.055]
[1757250432216,0.93178224,111120.0,111110.0,0.055]
[1757250432862,0.93378224,111120.0,111110.0,0.055]
[1757250433093,0.93178224,111120.0,111110.0,0.055]
[1757250433340,1.24178224,111120.0,111110.0,0.055]
[1757250433553,1.24578224,111120.0,111110.0,0.055]
[1757250434878,0.93578224,111120.0,111110.0,0.055]
[1757250438117,1.24578224,111120.0,111110.0,0.055]
[1757250438756,0.93578224,111120.0,111110.0,0.055]
[1757250443023,1.24578224,111120.0,111110.0,0.055]
[1757250445412,1.09678224,111120.0,111110.0,0.055]
[1757250445616,1.24578224,111120.0,111110.0,0.055]
[1757250446594,1.09678224,111120.0,111110.0,0.055]
[1757250446815,1.24586224,111120.0,111110.0,0.055]
[1757250447447,1.09678224,111120.0,111110.0,0.055]
[1757250447662,1.24586224,111120.0,111110.0,0.055]
[1757250448512,1.09678224,111120.0,111110.0,0.055]
[1757250448661,1.24586224,111120.0,111110.0,0.055]
[1757250455879,1.24286224,111120.0,111110.0,0.055]
[1757250456757,1.23886224,111120.0,111110.0,0.055]
[1757250456960,1.24186224,111120.0,111110.0,0.055]
[1757250458091,1.24386224,111120.0,111110.0,0.055]
[1757250458308,1.26915776,111120.0,111110.0,0.055]
[1757250459420,1.21915776,111120.0,111110.0,0.055]
[1757250460864,1.21916098,111120.0,111110.0,0.055]
[1757250461282,1.19386224,111120.0,111110.0,0.055]
[1757250464270,1.19186224,111120.0,111110.0,0.055]
[1757250464473,1.18886224,111120.0,111110.0,0.055]
[1757250464918,1.19086224,111120.0,111110.0,0.055]
[1757250465145,1.19386224,111120.0,111110.0,0.055]
[1757250466089,1.04478224,111120.0,111110.0,0.055]
[1757250466290,1.19386224,111120.0,111110.0,0.055]
[1757250476183,1.02071342,111120.0,111110.0,0.255]
[1757250476380,1.16975342,111120.0,111110.0,0.255]
[1757250480364,1.14274159,111120.0,111110.0,0.255]
[1757250489681,1.14590159,111120.0,111110.0,0.255]
[1757250495600,0.83590159,111120.0,111110.0,0.255]
[1757250502097,0.68686159,111120.0,111110.0,0.255]
[1757250502296,0.83590159,111120.0,111110.0,0.255]
[1757250505101,0.68686159,111120.0,111110.0,0.255]
[1757250505308,0.83590159,111120.0,111110.0,0.255]
[1757250506462,0.83274159,111120.0,111110.0,0.255]
[1757250507033,0.68370159,111120.0,111110.0,0.255]
[1757250507235,0.83270159,111120.0,111110.0,0.255]
[1757250507581,0.68370159,111120.0,111110.0,0.255]
[1757250507770,0.83270159,111120.0,111110.0,0.255]
[1757250510362,0.68370159,111120.0,111110.0,0.255]
[1757250510567,0.83270159,111120.0,111110.0,0.255]
[1757250517391,0.83569159,111120.0,111110.0,0.255]
[1757250518637,0.83270159,111120.0,111110.0,0.255]
[1757250520263,0.83569159,111120.0,111110.0,0.255]
[1757250522350,0.68669159,111120.0,111110.0,0.255]
[1757250522552,0.83270159,111120.0,111110.0,0.255]
[1757250524091,0.68370159,111120.0,111110.0,0.255]
[1757250524307,0.83270159,111120.0,111110.0,0.255]
[1757250527591,0.68370159,111120.0,111110.0,0.255]
[1757250527805,0.83270159,111120.0,111110.0,0.255]
[1757250532331,0.85971546,111120.0,111110.0,0.255]
[1757250543365,0.71071546,111120.0,111110.0,0.25711]
[1757250543580,0.70874546,111120.0,111110.0,0.26027]
[1757250544975,0.70574546,111120.0,111110.0,0.26027]
[1757250545461,0.70374546,111120.0,111110.0,0.26027]
[1757250545681,0.85474546,111120.0,111110.0,0.26027]
[1757250545869,0.85574546,111120.0,111110.0,0.26027]
[1757250557395,0.85574546,111120.0,111110.0,0.40927]
[1757250563830,0.51574546,111120.0,111110.0,0.40927]
[1757250565690,0.36674546,111120.0,111110.0,0.40927]
[1757250565913,0.51570546,111120.0,111110.0,0.40927]
[1757250566803,0.48869159,111120.0,111110.0,0.40927]
[1757250566992,0.33973159,111120.0,111110.0,0.40927]
[1757250571543,0.48869159,111120.0,111110.0,0.40927]
[1757250572348,0.33973159,111120.0,111110.0,0.7392718]
[1757250572863,0.33973159,111120.0,111110.0,0.76628266]
[1757250573285,0.33873159,111120.0,111110.0,0.76628266]
[1757250573472,0.33673159,111120.0,111110.0,0.43728086]
[1757250573688,0.33673159,111120.0,111110.0,0.58624086]
[1757250575402,0.33973159,111120.0,111110.0,0.58624086]
[1757250593715,0.33973159,111120.0,111110.0,0.58624086]
[1757250599826,0.33978044,111120.0,111110.0,0.58624086]
[1757250600913,0.33973159,111120.0,111110.0,0.58619201]
[1757250607370,0.33873159,111120.0,111110.0,0.58619201]
[1757250607808,0.33673159,111120.0,111110.0,0.58619201]
[1757250623540,0.33673159,111120.0,111110.0,0.76619381]
[1757250629785,0.33673159,111120.0,111110.0,0.58619201]
[1757250631181,0.33673159,111120.0,111110.0,0.76619381]
[1757250632543,0.33673159,111120.0,111110.0,0.73918295]
[1757250634603,0.33673159,111120.0,111110.0,0.55918115]
[1757250635275,0.33673159,111120.0,111110.0,0.73918295]
[1757250652498,0.36374244,111120.0,111110.0,0.7661938]
[1757250665878,0.33673159,111120.0,111110.0,0.7661938]
[1757250667861,0.33673159,111120.0,111110.0,0.437232]
[1757250668078,0.33872159,111120.0,111110.0,0.081962]
[1757250668293,0.33872159,111120.0,111110.0,0.05495115]
[1757250668294,0.34173159,111120.0,111110.0,0.05495115]
[1757250668433,0.36874461,111120.0,111110.0,0.05495115]
[1757250671203,0.70874461,111120.0,111110.0,0.05495115]
[1757250672146,0.71074461,111120.0,111110.0,0.05495115]
[1757250685305,0.85970461,111120.0,111110.0,0.05495115]
[1757250697135,0.71074461,111120.0,111110.0,0.05495115]
[1757250697354,0.85970461,111120.0,111110.0,0.05495115]
[1757250697586,0.71074461,111120.0,111110.0,0.05495115]
[1757250697812,0.85669461,111120.0,111110.0,0.05495115]
[1757250705467,0.85992461,111120.0,111110.0,0.05495115]
[1757250709280,0.85673461,111120.0,111110.0,0.06017115]
[1757250711106,0.85673461,111120.0,111110.0,0.05707115]
[1757250717687,0.70873461,111120.0,111110.0,0.05707115]
[1757250718011,0.85769461,111120.0,111110.0,0.05707115]
[1757250719411,0.70873461,111120.0,111110.0,0.05707115]
[1757250719615,0.85769461,111120.0,111110.0,0.06014115]
[1757250720267,0.70873461,111120.0,111110.0,0.06014115]
[1757250720506,0.85570461,111120.0,111110.0,0.06014115]
[1757250722574,0.85771461,111120.0,111110.0,0.06014115]
[1757250722891,0.85771461,111120.0,111110.0,0.05707115]
[1757250723313,0.85771461,111120.0,111110.0,0.05495115]
[1757250724922,0.85771461,111120.0,111110.0,0.05997115]
[1757250727992,0.85771461,111120.0,111110.0,0.05495115]
[1757250728524,0.85771461,111120.0,111110.0,0.05690115]
[1757250728742,0.85771461,111120.0,111110.0,0.05997115]
[1757250729081,0.85771461,111120.0,111110.0,0.05495115]
[1757250729329,0.86080461,111120.0,111110.0,0.05495115]
[1757250750206,0.86040461,111120.0,111110.0,0.05495115]
[1757250750401,0.85731461,111120.0,111110.0,0.05495115]
[1757250750591,0.86040461,111120.0,111110.0,0.05495115]
[1757250755640,0.85731461,111120.0,111110.0,0.05495115]
[1757250757741,0.70835461,111120.0,111110.0,0.05495115]
[1757250757938,0.85739461,111120.0,111110.0,0.05495115]
[1757250760034,0.86048461,111120.0,111110.0,0.05495115]
[1757250760328,0.85739461,111120.0,111110.0,0.05495115]
[1757250767238,0.70835461,111120.0,111110.0,0.05495115]
[1757250767436,0.85739461,111120.0,111110.0,0.05495115]
[1757250777856,0.70835461,111120.0,111110.0,0.05495115]
[1757250778080,0.85739461,111120.0,111110.0,0.05495115]
[1757250779166,0.70835461,111120.0,111110.0,0.05495115]
[1757250779379,0.85739461,111120.0,111110.0,0.05691115]
[1757250779906,0.70835461,111120.0,111110.0,0.05691115]
[1757250780119,0.85739461,111120.0,111110.0,0.05691115]
[1757250783270,0.85739461,111120.0,111110.0,0.05495115]
[1757250800498,0.85739461,111120.0,111110.0,0.05699115]
[1757250800737,0.51739461,111120.0,111110.0,0.05495115]
[1757250818674,0.36835461,111120.0,111110.0,0.05495115]
[1757250818859,0.51731461,111120.0,111110.0,0.05495115]
[1757250820925,0.36835461,111120.0,111110.0,0.05495115]
[1757250821125,0.51731461,111120.0,111110.0,0.05495115]
[1757250823184,0.36835461,111120.0,111110.0,0.05495115]
[1757250823389,0.51731461,111120.0,111110.0,0.05495115]
[1757250826628,0.36835461,111120.0,111110.0,0.05495115]
[1757250826805,0.51731461,111120.0,111110.0,0.05495115]
[1757250827013,0.52031461,111120.0,111110.0,0.05495115]
[1757250827615,0.51731461,111120.0,111110.0,0.05495115]
[1757250832053,0.36835461,111120.0,111110.0,0.05495115]
[1757250832200,0.51731461,111120.0,111110.0,0.05495115]
[1757250835942,0.36835461,111120.0,111110.0,0.05495115]
[1757250836147,0.51731461,111120.0,111110.0,0.05495115]
[1757250836477,0.36835461,111120.0,111110.0,0.05495115]
[1757250836699,0.51731461,111120.0,111110.0,0.05495115]
[1757250837267,0.36835461,111120.0,111110.0,0.05495115]
[1757250837472,0.51731461,111120.0,111110.0,0.05495115]
[1757250839268,0.36835461,111120.0,111110.0,0.05495115]
[1757250839477,0.51731461,111120.0,111110.0,0.05495115]
[1757250843417,0.36835461,111120.0,111110.0,0.05495115]
[1757250843645,0.51731461,111120.0,111110.0,0.05495115]
[1757250843865,0.86046461,111120.0,111110.0,0.05495115]
[1757250846785,0.71150461,111120.0,111110.0,0.05495115]
[1757250847019,0.86046461,111120.0,111110.0,0.05495115]
[1757250856092,1.17046461,111120.0,111110.0,0.05495115]
[1757250882075,0.180018,111100.0,111090.0,0.00014023]
[1757250882313,0.27193399,111100.0,111090.0,0.00317023]
[1757250882529,0.27193399,111100.0,111090.0,0.00530023]
[1757250883388,0.2989511,111100.0,111090.0,0.00530023]
[1757250884006,0.2989511,111100.0,111090.0,0.00630023]
[1757250885014,0.3010311,111100.0,111090.0,0.00630023]
[1757250888492,0.11907951,111100.0,111090.0,0.00630023]
[1757250888697,0.29909751,111100.0,111090.0,0.00630023]
[1757250892673,0.29909751,111100.0,111090.0,0.00327023]
[1757250896136,0.30218751,111100.0,111090.0,0.00114023]
[1757250898768,0.31131668,111100.0,111090.0,0.00114023]
[1757250899385,0.65131668,111100.0,111090.0,0.00114023]
[1757250899584,0.65131668,111100.0,111090.0,0.00014023]
[1757250899791,0.65131668,111100.0,111090.0,0.00114023]
[1757250900432,0.65131668,111100.0,111090.0,0.00014023]
[1757250900856,0.65231668,111100.0,111090.0,0.00014023]
[1757250901731,0.65062968,111100.0,111090.0,0.00014023]
[1757250902133,0.96062968,111100.0,111090.0,0.00014023]
[1757250906969,0.9815685,111100.0,111090.0,0.00014023]
[1757250909605,1.0315685,111100.0,111090.0,0.00014023]
[1757250910054,0.8705285,111100.0,111090.0,0.00014023]
[1757250911688,1.1805285,111100.0,111090.0,0.00014023]
[1757250917934,1.0315685,111100.0,111090.0,0.00014023]
[1757250918107,1.1805285,111100.0,111090.0,0.00014023]
[1757250919000,1.1805285,111100.0,111090.0,0.00214023]
[1757250919649,1.1805285,111100.0,111090.0,0.00014023]
[1757250920274,1.1815285,111100.0,111090.0,0.00014023]
[1757250920427,1.0325685,111100.0,111090.0,0.00014023]
[1757250920604,1.1815685,111100.0,111090.0,0.00014023]
[1757250933974,0.18005041,111080.0,111070.0,0.0014]
[1757250934200,0.4209664,111080.0,111070.0,0.00186458]
[1757250934403,0.4229164,111080.0,111070.0,0.00186458]
[1757250934604,0.45311118,111080.0,111070.0,0.00186458]
[1757250934806,0.79311118,111080.0,111070.0,0.00186458]
[1757250935191,0.86405,111080.0,111070.0,0.00286458]
[1757250936448,0.86405,111080.0,111070.0,0.00486458]
[1757250936681,0.86405,111080.0,111070.0,0.00286458]
[1757250937054,0.86405,111080.0,111070.0,0.00186458]
[1757250938312,0.86505,111080.0,111070.0,0.00186458]
[1757250938749,0.90515846,111080.0,111070.0,0.00186458]
[1757250947441,0.90571846,111080.0,111070.0,0.00186458]
[1757250947784,0.75615846,111080.0,111070.0,0.00186458]
[1757250948020,0.90571846,111080.0,111070.0,0.00186458]
[1757250948745,0.90567846,111080.0,111070.0,0.00186458]
[1757250972797,0.72562805,111080.0,111070.0,0.00186458]
[1757250973046,0.90567846,111080.0,111070.0,0.00186458]
[1757250973553,1.21567846,111080.0,111070.0,0.00186458]
[1757251010570,1.06615846,111080.0,111070.0,0.00186458]
[1757251010769,1.21543846,111080.0,111070.0,0.00186458]
[1757251014157,1.11468139,111080.0,111070.0,0.00186458]
[1757251014383,1.14170867,111080.0,111070.0,0.00186458]
[1757251017078,1.14166867,111080.0,111070.0,0.00186458]
[1757251020605,0.87028096,111080.0,111070.0,0.00186458]
[1757251021973,0.87028096,111080.0,111070.0,0.00500458]
[1757251022190,0.72104096,111080.0,111070.0,0.00706458]
[1757251022407,0.87028096,111080.0,111070.0,0.00706458]
[1757251022662,0.65010214,111080.0,111070.0,0.00706458]
[1757251022886,0.75923368,111080.0,111070.0,0.00706458]
[1757251023341,0.60999368,111080.0,111070.0,0.00706458]
[1757251023561,0.75923368,111080.0,111070.0,0.00706458]
[1757251029596,0.60999368,111080.0,111070.0,0.18938203]